fUST/lending_fUST_20250622
["ID","MTS","AMOUNT","RATE_DAILY","PERIOD"]
[366890830,1750552255247,-2729.02857469,0.00025176,12]
[366890831,1750552255260,-151.0,0.00025176,7]
[366890832,1750552255270,-151.0,0.00025176,7]
[366890833,1750552255279,-1000.0,0.0002518,5]
[366890834,1750552255288,-873.235841,0.0002519,2]
[366890835,1750552255301,-873.235841,0.0002519,2]
[366890836,1750552255310,-151.0,0.0002519,7]
[366890837,1750552255319,-1168.664466,0.0002519,7]
[366890838,1750552255329,-1168.664466,0.0002519,7]
[366890839,1750552255340,-177.725555,0.0002519,7]
[366890840,1750552255349,-177.725555,0.0002519,7]
[366890841,1750552255359,-151.0,0.0002519,7]
[366890842,1750552255368,-151.0,0.0002519,7]
[366890843,1750552255377,-152.916,0.00025199,2]
[366890844,1750552255387,-847.17,0.000252,31]
[366890845,1750552255397,-847.17,0.000252,31]
[366890846,1750552255406,-847.17,0.000252,31]
[366890847,1750552255416,-847.17,0.000252,31]
[366890848,1750552255425,-847.17,0.000252,31]
[366890849,1750552255435,-847.17,0.000252,31]
[366890850,1750552255444,-847.17,0.000252,31]
[366890851,1750552255454,-847.17,0.000252,31]
[366890852,1750552255463,-847.17,0.000252,31]
[366890853,1750552255472,-847.17,0.000252,31]
[366890854,1750552255482,-847.17,0.000252,31]
[366890855,1750552255493,-847.17,0.000252,31]
[366890856,1750552255502,-847.17,0.000252,31]
[366890857,1750552255512,-847.17,0.000252,31]
[366890858,1750552255521,-847.17,0.000252,31]
[366890859,1750552255531,-847.17,0.000252,31]
[366890860,1750552255540,-1000.0,0.000252,5]
[366890861,1750552255551,-258.222367,0.000252,7]
[366890862,1750552255561,-258.222367,0.000252,7]
[366890863,1750552255571,-184.6,0.00025214,7]
[366890864,1750552255581,-1000.0,0.0002522,5]
[366890865,1750552255591,-5195.57459547,0.00025227,2]
[366890866,1750552255600,-200.0,0.00025227,120]
[366890867,1750552255609,-1000.0,0.0002524,5]
[366890868,1750552255619,-151.0,0.00025256,7]
[366890869,1750552255628,-187.493283,0.0002526,7]
[366890870,1750552255638,-187.493283,0.0002526,7]
[366890871,1750552255647,-242.315249,0.0002526,7]
[366890872,1750552255657,-242.315249,0.0002526,7]
[366890873,1750552255666,-151.0,0.0002526,7]
[366890874,1750552255676,-1000.0,0.0002526,5]
[366890875,1750552255687,-157.499399,0.00025265,7]
[366890876,1750552255697,-2729.02857469,0.00025279,12]
[366890877,1750552255706,-1000.0,0.0002528,5]
[366890878,1750552255717,-1118.888283,0.0002528,5]
[366890879,1750552255727,-5195.57459547,0.0002528,2]
[366890880,1750552255737,-167.45607275,0.00025284,2]
[366890881,1750552255747,-2000.0,0.000253,2]
[366890882,1750552255757,-2000.0,0.000253,2]
[366890883,1750552255766,-1000.0,0.000253,5]
[366890884,1750552255776,-1000.0,0.000253,5]
[366890885,1750552255786,-250.0,0.000253,30]
[366890886,1750552255795,-189.7063,0.000253,2]
[366890887,1750552255806,-202.740427,0.000253,2]
[366890888,1750552255815,-2000.0,0.00025316,2]
[366890889,1750552255825,-508.87379417,0.00025348,9]
[366890890,1750552255835,-500.0,0.00025348,9]
[366890891,1750552255844,-151.0,0.00025348,7]
[366890892,1750552255854,-151.0,0.00025348,7]
[366890893,1750552255863,-151.0,0.00025348,7]
[366890894,1750552255873,-151.0,0.00025348,7]
[366890895,1750552255882,-151.0,0.00025357,7]
[366890896,1750552255891,-151.0,0.00025357,7]
[366890897,1750552255901,-151.0,0.00025357,7]
[366890898,1750552255910,-151.0,0.00025357,7]
[366890899,1750552255920,-151.0,0.00025357,7]
[366890900,1750552255930,-173.497715,0.00025365,7]
[366890901,1750552255941,-156.363393,0.00025365,7]
[366890902,1750552255950,-156.363393,0.00025365,7]
[366890903,1750552255959,-151.0,0.00025365,7]
[366890904,1750552255969,-151.0,0.00025365,7]
[366890905,1750552255978,-314.740953,0.00025365,7]
[366890906,1750552255987,-314.740953,0.00025365,7]
[366890907,1750552255997,-151.0,0.00025366,7]
[366890908,1750552256007,-151.0,0.00025366,7]
[366890909,1750552256017,-151.0,0.00025366,7]
[366890910,1750552256027,-151.0,0.00025366,7]
[366890911,1750552256092,-151.0,0.00025366,7]
[366890912,1750552256108,-151.0,0.00025366,7]
[366890913,1750552256117,-151.0,0.00025366,7]
[366890914,1750552256127,-151.0,0.00025366,7]
[366890915,1750552256136,-151.0,0.00025366,7]
[366890916,1750552256146,-151.0,0.00025366,7]
[366890917,1750552256155,-151.0,0.00025366,7]
[366890918,1750552256164,-151.0,0.00025366,7]
[366890919,1750552256174,-152.3773,0.00025366,7]
[366890920,1750552256183,-151.0,0.00025366,7]
[366890921,1750552256192,-151.0,0.00025366,7]
[366890922,1750552256202,-731.5103162,0.0002537,2]
[366890923,1750552256212,-365.7551581,0.0002537,2]
[366890924,1750552256221,-176.6642544,0.0002537,2]
[366890925,1750552256231,-295.099902,0.0002537,2]
[366890926,1750552256239,-162.6231934,0.0002537,2]
[366890927,1750552256249,-184.6,0.0002537,7]
[366890928,1750552256259,-500.0,0.00025373,2]
[366890929,1750552256271,-873.235841,0.00025377,2]
[366890930,1750552256281,-873.235841,0.00025377,2]
[366890931,1750552256291,-873.235841,0.00025377,2]
[366890932,1750552256303,-873.235841,0.00025377,2]
[366890933,1750552256312,-873.235841,0.00025377,2]
[366890934,1750552256322,-873.235841,0.00025377,2]
[366890935,1750552256331,-873.235841,0.00025377,2]
[366890936,1750552256342,-873.235841,0.00025377,2]
[366890937,1750552256352,-873.235841,0.00025377,2]
[366890938,1750552256362,-873.235841,0.00025377,2]
[366890939,1750552256372,-873.235841,0.00025377,2]
[366890940,1750552256381,-873.235841,0.00025377,2]
[366890941,1750552256391,-873.235841,0.00025377,2]
[366890942,1750552256400,-873.235841,0.00025377,2]
[366890943,1750552256410,-873.235841,0.00025377,2]
[366890944,1750552256419,-873.235841,0.00025377,2]
[366890945,1750552256428,-873.235841,0.00025377,2]
[366890946,1750552256438,-873.235842,0.00025377,2]
[366890947,1750552256448,-151.0,0.00025377,7]
[366890948,1750552256457,-292.727439,0.00025377,7]
[366890949,1750552256467,-156.363393,0.00025377,7]
[366890950,1750552256476,-156.363393,0.00025377,7]
[366890951,1750552256485,-156.363393,0.00025377,7]
[366890952,1750552256494,-156.363393,0.00025377,7]
[366890953,1750552256504,-156.363393,0.00025377,7]
[366890954,1750552256513,-156.363393,0.00025377,7]
[366890955,1750552256522,-156.363393,0.00025377,7]
[366890956,1750552256531,-156.363393,0.00025377,7]
[366890957,1750552256541,-156.363393,0.00025377,7]
[366890958,1750552256551,-156.363393,0.00025377,7]
[366890959,1750552256560,-156.363393,0.00025377,7]
[366890960,1750552256569,-156.363393,0.00025377,7]
[366890961,1750552256579,-156.363393,0.00025377,7]
[366890962,1750552256588,-156.363392,0.00025377,7]
[366890963,1750552256598,-151.0,0.00025377,7]
[366890964,1750552256607,-151.0,0.00025377,7]
[366890965,1750552256616,-247.70468,0.00025377,7]
[366890966,1750552256626,-151.0,0.00025377,7]
[366890967,1750552256636,-151.0,0.00025377,7]
[366890968,1750552256646,-151.0,0.00025377,7]
[366890969,1750552256655,-151.0,0.00025377,7]
[366890970,1750552256664,-196.30971,0.00025377,7]
[366890971,1750552256673,-151.0,0.00025377,7]
[366890972,1750552256682,-151.0,0.00025377,7]
[366890973,1750552256691,-151.0,0.00025377,7]
[366890974,1750552256701,-151.0,0.00025377,7]
[366890975,1750552256710,-151.0,0.00025377,7]
[366890976,1750552256719,-151.0,0.00025377,7]
[366890977,1750552256728,-151.0,0.00025377,7]
[366890978,1750552256738,-151.0,0.00025377,7]
[366890979,1750552256747,-151.0,0.00025377,7]
[366890980,1750552256756,-151.0,0.00025377,7]
[366890981,1750552256765,-151.0,0.00025377,7]
[366890982,1750552256774,-151.0,0.00025377,7]
[366890983,1750552256783,-165.624258,0.00025377,7]
[366890984,1750552256792,-1168.664466,0.00025377,7]
[366890985,1750552256801,-1168.664466,0.00025377,7]
[366890986,1750552256810,-1168.664466,0.00025377,7]
[366890987,1750552256819,-1168.664466,0.00025377,7]
[366890988,1750552256829,-1168.664466,0.00025377,7]
[366890989,1750552256838,-1168.664466,0.00025377,7]
[366890990,1750552256847,-1168.664466,0.00025377,7]
[366890991,1750552256856,-1168.664466,0.00025377,7]
[366890992,1750552256865,-1168.664466,0.00025377,7]
[366890993,1750552256874,-1168.664466,0.00025377,7]
[366890994,1750552256883,-1168.664466,0.00025377,7]
[366890995,1750552256892,-1168.664466,0.00025377,7]
[366890996,1750552256901,-1168.664466,0.00025377,7]
[366890997,1750552256911,-1168.664466,0.00025377,7]
[366890998,1750552256920,-1168.664466,0.00025377,7]
[366890999,1750552256929,-1168.664466,0.00025377,7]
[366891000,1750552256939,-1168.664466,0.00025377,7]
[366891001,1750552256947,-1168.664474,0.00025377,7]
[366891002,1750552256956,-314.740953,0.00025377,7]
[366891003,1750552256966,-314.740953,0.00025377,7]
[366891004,1750552256975,-314.740953,0.00025377,7]
[366891005,1750552256984,-314.740953,0.00025377,7]
[366891006,1750552256993,-314.740953,0.00025377,7]
[366891007,1750552257002,-314.740953,0.00025377,7]
[366891008,1750552257011,-314.740953,0.00025377,7]
[366891009,1750552257020,-314.740953,0.00025377,7]
[366891010,1750552257029,-314.740953,0.00025377,7]
[366891011,1750552257038,-314.740953,0.00025377,7]
[366891012,1750552257047,-314.740953,0.00025377,7]
[366891013,1750552257056,-314.740953,0.00025377,7]
[366891014,1750552257066,-314.740953,0.00025377,7]
[366891015,1750552257075,-314.740959,0.00025377,7]
[366891016,1750552257083,-151.0,0.00025379,7]
[366891017,1750552257092,-165.396995,0.00025379,7]
[366891018,1750552257102,-165.396995,0.00025379,7]
[366891019,1750552257111,-165.396995,0.00025379,7]
[366891020,1750552257120,-165.396995,0.00025379,7]
[366891021,1750552257129,-165.396995,0.00025379,7]
[366891022,1750552257139,-165.396995,0.00025379,7]
[366891023,1750552257148,-165.396995,0.00025379,7]
[366891024,1750552257157,-165.396995,0.00025379,7]
[366891025,1750552257166,-165.396995,0.00025379,7]
[366891026,1750552257175,-165.396995,0.00025379,7]
[366891027,1750552257185,-165.396995,0.00025379,7]
[366891028,1750552257194,-165.397002,0.00025379,7]
[366891029,1750552257203,-1500.0,0.00025379,14]
[366891030,1750552257213,-1500.0,0.00025379,14]
[366891031,1750552257221,-1500.0,0.00025379,14]
[366891032,1750552257229,-1500.0,0.00025379,14]
[366891033,1750552257239,-1500.0,0.00025379,14]
[366891034,1750552257248,-1500.0,0.00025379,14]
[366891035,1750552257258,-1500.0,0.00025379,14]
[366891036,1750552257270,-1500.0,0.00025379,14]
[366891037,1750552257279,-1500.0,0.00025379,14]
[366891038,1750552257288,-1500.0,0.00025379,14]
[366891039,1750552257297,-1500.0,0.00025379,14]
[366891040,1750552257309,-1500.0,0.00025379,14]
[366891041,1750552257319,-1500.0,0.00025379,14]
[366891042,1750552257328,-1500.0,0.00025379,14]
[366891043,1750552257338,-1500.0,0.00025379,14]
[366891044,1750552257407,-1500.0,0.00025379,14]
[366891045,1750552257417,-1500.0,0.00025379,14]
[366891046,1750552257427,-1500.0,0.00025379,14]
[366891047,1750552257437,-1500.0,0.00025379,14]
[366891048,1750552257447,-1500.0,0.00025379,14]
[366891049,1750552257456,-1500.0,0.00025379,14]
[366891050,1750552257466,-1500.0,0.00025379,14]
[366891051,1750552257475,-1500.0,0.00025379,14]
[366891052,1750552257484,-1500.0,0.00025379,14]
[366891053,1750552257494,-1500.0,0.00025379,14]
[366891054,1750552257504,-1500.0,0.00025379,14]
[366891055,1750552257513,-1500.0,0.00025379,14]
[366891056,1750552257523,-1500.0,0.00025379,14]
[366891057,1750552257532,-1076.9576046,0.00025379,14]
[366891058,1750552260387,-460.0,0.00021917,2]
[366891059,1750552260397,-423.0423954,0.00025379,14]
[366891060,1750552260406,-1211.065445,0.00025379,14]
[366891061,1750552260416,-544.531843,0.00025379,7]
[366891062,1750552260425,-544.531843,0.00025379,7]
[366891063,1750552260435,-544.531843,0.00025379,7]
[366891064,1750552260445,-544.531843,0.00025379,7]
[366891065,1750552260455,-544.531843,0.00025379,7]
[366891066,1750552260464,-544.531843,0.00025379,7]
[366891067,1750552260474,-544.531843,0.00025379,7]
[366891068,1750552260483,-544.531843,0.00025379,7]
[366891069,1750552260493,-544.531843,0.00025379,7]
[366891070,1750552260506,-544.53183818,0.00025379,7]
[366891071,1750552260515,-151.0,0.0002538,7]
[366891072,1750552260524,-159.381863,0.0002538,7]
[366891073,1750552260533,-406.540493,0.0002538,7]
[366891074,1750552260542,-151.0,0.0002538,7]
[366891075,1750552260554,-151.0,0.0002538,7]
[366891076,1750552260563,-151.0,0.0002538,7]
[366891077,1750552260573,-151.0,0.0002538,7]
[366891078,1750552260582,-151.0,0.0002538,7]
[366891079,1750552260592,-151.0,0.0002538,7]
[366891080,1750552260601,-151.0,0.0002538,7]
[366891081,1750552260611,-151.0,0.0002538,7]
[366891082,1750552260621,-151.0,0.0002538,7]
[366891083,1750552260630,-151.0,0.0002538,7]
[366891084,1750552260639,-151.0,0.0002538,7]
[366891085,1750552260649,-151.0,0.0002538,7]
[366891086,1750552260659,-151.0,0.0002538,7]
[366891087,1750552260668,-180.708275,0.0002538,7]
[366891088,1750552260677,-180.708275,0.0002538,7]
[366891089,1750552260687,-180.708275,0.0002538,7]
[366891090,1750552260696,-180.708275,0.0002538,7]
[366891091,1750552260706,-180.708275,0.0002538,7]
[366891092,1750552260716,-180.708275,0.0002538,7]
[366891093,1750552260725,-180.708275,0.0002538,7]
[366891094,1750552260735,-180.708275,0.0002538,7]
[366891095,1750552260745,-180.708275,0.0002538,7]
[366891096,1750552260754,-180.708275,0.0002538,7]
[366891097,1750552260763,-180.708275,0.0002538,7]
[366891098,1750552260771,-180.708275,0.0002538,7]
[366891099,1750552260781,-180.708275,0.0002538,7]
[366891100,1750552260791,-180.708275,0.0002538,7]
[366891101,1750552260867,-180.708275,0.0002538,7]
[366891102,1750552260877,-180.708269,0.0002538,7]
[366891103,1750552260887,-177.725555,0.0002538,7]
[366891104,1750552260896,-177.725555,0.0002538,7]
[366891105,1750552260905,-177.725555,0.0002538,7]
[366891106,1750552260914,-177.725555,0.0002538,7]
[366891107,1750552260924,-177.725555,0.0002538,7]
[366891108,1750552260934,-177.725555,0.0002538,7]
[366891109,1750552260945,-177.725555,0.0002538,7]
[366891110,1750552260955,-177.725555,0.0002538,7]
[366891111,1750552260964,-177.725555,0.0002538,7]
[366891112,1750552260974,-177.725555,0.0002538,7]
[366891113,1750552260983,-177.725555,0.0002538,7]
[366891114,1750552260993,-177.725555,0.0002538,7]
[366891115,1750552261002,-177.725555,0.0002538,7]
[366891116,1750552261011,-177.725555,0.0002538,7]
[366891117,1750552261020,-177.725555,0.0002538,7]
[366891118,1750552261030,-177.725554,0.0002538,7]
[366891119,1750552261039,-151.0,0.0002538,7]
[366891120,1750552261049,-151.0,0.0002538,7]
[366891121,1750552261061,-151.0,0.0002538,7]
[366891122,1750552261070,-151.0,0.0002538,7]
[366891123,1750552261079,-151.0,0.0002538,7]
[366891124,1750552261088,-151.0,0.0002538,7]
[366891125,1750552261098,-151.0,0.0002538,7]
[366891126,1750552261106,-151.0,0.0002538,7]
[366891127,1750552261116,-151.0,0.0002538,7]
[366891128,1750552261126,-151.0,0.0002538,7]
[366891129,1750552261136,-151.0,0.0002538,7]
[366891130,1750552261145,-151.0,0.0002538,7]
[366891131,1750552261154,-298.49066293,0.0002538,7]
[366891132,1750552261163,-258.222367,0.0002538,7]
[366891133,1750552261173,-258.222367,0.0002538,7]
[366891134,1750552261183,-258.222367,0.0002538,7]
[366891135,1750552261193,-258.222367,0.0002538,7]
[366891136,1750552261202,-258.222367,0.0002538,7]
[366891137,1750552261212,-258.222367,0.0002538,7]
[366891138,1750552261221,-258.222367,0.0002538,7]
[366891139,1750552261231,-258.222367,0.0002538,7]
[366891140,1750552261240,-258.222367,0.0002538,7]
[366891141,1750552261250,-258.222367,0.0002538,7]
[366891142,1750552261260,-258.222367,0.0002538,7]
[366891143,1750552261271,-258.222361,0.0002538,7]
[366891144,1750552261285,-151.0,0.0002538,7]
[366891145,1750552261304,-151.0,0.0002538,7]
[366891146,1750552261321,-151.0,0.0002538,7]
[366891147,1750552261342,-151.0,0.0002538,7]
[366891148,1750552261363,-151.0,0.0002538,7]
[366891149,1750552261380,-151.0,0.0002538,7]
[366891150,1750552261398,-151.0,0.0002538,7]
[366891151,1750552261416,-151.0,0.0002538,7]
[366891152,1750552261432,-151.0,0.0002538,7]
[366891153,1750552261450,-151.0,0.0002538,7]
[366891154,1750552261469,-151.0,0.0002538,7]
[366891155,1750552261486,-151.0,0.0002538,7]
[366891156,1750552261500,-260.527769,0.0002538,7]
[366891157,1750552261517,-187.493283,0.00025381,7]
[366891158,1750552261533,-187.493283,0.00025381,7]
[366891159,1750552261548,-187.493283,0.00025381,7]
[366891160,1750552261566,-187.49329,0.00025381,7]
[366891161,1750552261579,-242.315249,0.00025381,7]
[366891162,1750552261594,-242.315249,0.00025381,7]
[366891163,1750552261608,-242.315249,0.00025381,7]
[366891164,1750552261623,-242.315255,0.00025381,7]
[366891165,1750552261638,-151.0,0.00025381,7]
[366891166,1750552261653,-151.0,0.00025381,7]
[366891167,1750552261666,-200.0,0.00025382,30]
[366891168,1750552261680,-200.0,0.00025382,30]
[366891169,1750552261695,-200.0,0.00025382,30]
[366891170,1750552261708,-278.32857004,0.00025382,30]
[366891171,1750552261718,-2729.02857469,0.00025383,13]
[366891172,1750552261727,-120048.92211686,0.00025384,20]
[366891173,1750552731208,915.66,0.00022556,30]
[366891174,1750552814407,910.66,0.00022861,30]
[366891175,1750552830775,200.0,0.00024417,120]
[366891177,1750552898661,905.69,0.00022877,30]
[366891178,1750552980357,900.75,0.0002292,30]
[366891181,1750553066060,152.43412842,0.000222,69]
[366891182,1750553071052,152.43412841,0.00022958,72]
[366891183,1750553114566,260.113107,0.00013699,2]
[366891185,1750553229133,-260.113107,0.00020187,2]
[366891186,1750553229156,-166.239334,0.00020923,2]
[366891187,1750553229177,-2872.36166168,0.00021817,2]
[366891188,1750553229198,-366.04745093,0.00021817,2]
[366891189,1750553229229,-1589.22911684,0.000219,6]
[366891190,1750553229250,-300.0,0.00021906,2]
[366891191,1750553229271,-300.0,0.00021906,2]
[366891192,1750553229421,-717.44,0.00021907,3]
[366891193,1750553229444,-358.72,0.00021907,3]
[366891194,1750553229466,-179.36,0.00021907,3]
[366891195,1750553229489,-538.12,0.00021907,3]
[366891196,1750553229510,-160.0,0.00021916,2]
[366891197,1750553229532,-310.19278113,0.00021917,2]
[366891198,1750553229555,-460.0,0.00021917,2]
[366891199,1750553229576,-460.0,0.00021917,2]
[366891200,1750553229597,-509.43803525,0.00021917,2]
[366891201,1750553229620,-315.73958246,0.00021917,2]
[366891202,1750553229641,-233.91634502,0.00021917,2]
[366891203,1750553229665,-487.08390594,0.00021917,2]
[366891204,1750553229686,-460.0,0.00021917,2]
[366891205,1750553229708,-460.0,0.00021917,2]
[366891206,1750553229730,-460.0,0.00021917,2]
[366891207,1750553229750,-460.0,0.00021917,2]
[366891208,1750553229770,-460.0,0.00021917,2]
[366891209,1750553229791,-460.0,0.00021917,2]
[366891210,1750553229812,-460.0,0.00021917,2]
[366891211,1750553229834,-460.0,0.00021917,2]
[366891212,1750553229855,-460.0,0.00021917,2]
[366891213,1750553229877,-460.0,0.00021917,2]
[366891214,1750553229897,-460.0,0.00021917,2]
[366891215,1750553229920,-436.83759577,0.00021917,2]
[366891216,1750553229941,-460.0,0.00021917,2]
[366891217,1750553229963,-460.0,0.00021917,2]
[366891218,1750553229984,-460.0,0.00021917,2]
[366891219,1750553230006,-460.0,0.00021917,2]
[366891220,1750553230027,-460.0,0.00021917,2]
[366891221,1750553230049,-460.0,0.00021917,2]
[366891222,1750553230070,-460.0,0.00021917,2]
[366891223,1750553230092,-460.0,0.00021917,2]
[366891224,1750553230112,-460.0,0.00021917,2]
[366891225,1750553230132,-367.44779896,0.00021917,2]
[366891226,1750553230153,-500.0,0.00021917,2]
[366891227,1750553230173,-500.0,0.00021917,2]
[366891228,1750553230193,-500.0,0.00021917,2]
[366891229,1750553230214,-509.22927698,0.00021917,2]
[366891230,1750553230235,-460.0,0.00021917,2]
[366891231,1750553230256,-460.0,0.00021917,2]
[366891232,1750553230276,-440.0,0.00021917,2]
[366891233,1750553230297,-580.12473085,0.00021917,2]
[366891234,1750553230318,-460.0,0.00021917,2]
[366891235,1750553230338,-460.0,0.00021917,2]
[366891236,1750553230358,-460.0,0.00021917,2]
[366891237,1750553230378,-1012.77997388,0.00021917,2]
[366891238,1750553230397,-426.25451626,0.00021917,2]
[366891239,1750553230419,-438.00847266,0.00021917,2]
[366891240,1750553230439,-460.0,0.00021917,2]
[366891241,1750553230460,-460.0,0.00021917,2]
[366891242,1750553230480,-460.0,0.00021917,2]
[366891243,1750553230500,-460.0,0.00021917,2]
[366891244,1750553230520,-257.03499347,0.00021917,2]
[366891245,1750553230545,-400.59629711,0.00021917,2]
[366891246,1750553230565,-460.0,0.00021917,2]
[366891247,1750553230586,-460.0,0.00021917,2]
[366891248,1750553230607,-454.05014374,0.00021917,2]
[366891249,1750553230629,-500.0,0.00021917,2]
[366891250,1750553230650,-500.0,0.00021917,2]
[366891251,1750553230672,-500.0,0.00021917,2]
[366891252,1750553230692,-460.0,0.00021917,2]
[366891253,1750553230713,-460.0,0.00021917,2]
[366891254,1750553230733,-460.0,0.00021917,2]
[366891255,1750553230753,-383.18483506,0.00021917,2]
[366891256,1750553230773,-316.03045849,0.00021917,2]
[366891257,1750553230793,-460.0,0.00021917,2]
[366891258,1750553230813,-460.0,0.00021917,2]
[366891259,1750553230833,-460.0,0.00021917,2]
[366891260,1750553230857,-410.0,0.00021917,2]
[366891261,1750553230876,-460.0,0.00021917,2]
[366891262,1750553230895,-460.0,0.00021917,2]
[366891263,1750553230915,-332.22540504,0.00021917,2]
[366891264,1750553230934,-437.32885911,0.00021917,2]
[366891265,1750553230953,-427.64045941,0.00021917,2]
[366891266,1750553230972,-435.9063231,0.00021917,2]
[366891267,1750553230992,-464.53432958,0.00021917,2]
[366891268,1750553231012,-433.52729192,0.00021917,2]
[366891269,1750553231033,-460.0,0.00021917,2]
[366891270,1750553231053,-500.0,0.00021917,2]
[366891271,1750553231073,-422.76280062,0.00021917,2]
[366891272,1750553231093,-460.0,0.00021917,2]
[366891273,1750553231113,-460.0,0.00021917,2]
[366891274,1750553231131,-462.10012513,0.00021917,2]
[366891275,1750553231150,-460.0,0.00021917,2]
[366891276,1750553231169,-460.0,0.00021917,2]
[366891277,1750553231189,-214.95574998,0.00021917,2]
[366891278,1750553231209,-461.51185511,0.00021917,2]
[366891279,1750553231229,-460.0,0.00021917,2]
[366891280,1750553231249,-492.86943726,0.00021917,2]
[366891281,1750553231269,-460.0,0.00021917,2]
[366891282,1750553231289,-448.16744798,0.00021917,2]
[366891283,1750553231311,-460.0,0.00021917,2]
[366891284,1750553231332,-460.0,0.00021917,2]
[366891285,1750553231353,-460.0,0.00021917,2]
[366891286,1750553231374,-430.0,0.00021917,2]
[366891287,1750553231396,-460.0,0.00021917,2]
[366891288,1750553231419,-460.0,0.00021917,2]
[366891289,1750553231439,-460.0,0.00021917,2]
[366891290,1750553231459,-460.0,0.00021917,2]
[366891291,1750553231480,-460.0,0.00021917,2]
[366891292,1750553231500,-460.0,0.00021917,2]
[366891293,1750553231521,-460.0,0.00021917,2]
[366891294,1750553231544,-460.0,0.00021917,2]
[366891295,1750553231565,-466.51986027,0.00021917,2]
[366891296,1750553231586,-440.1425519,0.00021917,2]
[366891297,1750553231607,-436.021116,0.00021917,2]
[366891298,1750553231632,-460.0,0.00021917,2]
[366891299,1750553231655,-460.0,0.00021917,2]
[366891300,1750553231676,-220.78875742,0.00021917,2]
[366891301,1750553231699,-500.0,0.00021917,2]
[366891302,1750553231720,-522.87903425,0.00021917,2]
[366891303,1750553231740,-460.0,0.00021917,2]
[366891304,1750553231761,-460.0,0.00021917,2]
[366891305,1750553231782,-460.0,0.00021917,2]
[366891306,1750553231802,-460.0,0.00021917,2]
[366891307,1750553231822,-403.99512149,0.00021917,2]
[366891308,1750553231842,-460.0,0.00021917,2]
[366891309,1750553231863,-460.0,0.00021917,2]
[366891310,1750553231953,-460.2241421,0.00021917,2]
[366891311,1750553231987,-407.76814739,0.00021917,2]
[366891312,1750553232009,-460.0,0.00021917,2]
[366891313,1750553232028,-370.66070181,0.00021917,2]
[366891314,1750553232048,-181.63506422,0.00021917,2]
[366891315,1750553232068,-460.0,0.00021917,2]
[366891316,1750553232088,-433.26988717,0.00021917,2]
[366891317,1750553232109,-430.0,0.00021917,2]
[366891318,1750553232129,-460.0,0.00021917,2]
[366891319,1750553232149,-460.0,0.00021917,2]
[366891320,1750553232171,-460.0,0.00021917,2]
[366891321,1750553232192,-460.0,0.00021917,2]
[366891322,1750553232212,-460.0,0.00021917,2]
[366891323,1750553232232,-468.91932691,0.00021917,2]
[366891324,1750553232252,-460.0,0.00021917,2]
[366891325,1750553232273,-420.0,0.00021917,2]
[366891326,1750553232293,-460.0,0.00021917,2]
[366891327,1750553232314,-460.0,0.00021917,2]
[366891328,1750553232334,-400.0,0.00021917,2]
[366891329,1750553232355,-460.0,0.00021917,2]
[366891330,1750553232375,-413.69774017,0.00021917,2]
[366891331,1750553232395,-460.0,0.00021917,2]
[366891332,1750553232418,-460.0,0.00021917,2]
[366891333,1750553232439,-608.51228631,0.00021917,2]